[Event "FIDE World Rapid Chess Championship 2021"]
[White "Saric, Ivan"]
[Black "Puranik, Abhimanyu"]
[WhiteFideId "14508150"]
[BlackFideId "5061245"]
[WhiteElo "2684"]
[BlackElo "2472"]
[Result "1/2-1/2"]
[Round "01"]
[TimeControl "900+10"]
[Date "2021.12.26"]
[WhiteClock "0:04:20"]
[BlackClock "0:06:26"]

1. e4 {[%clk 0:15:19]}  e5 {[%clk 0:15:19]} 2. Nf3 {[%clk 0:15:28]}  Nc6 {[%clk 0:15:27]} 3. Bb5 {[%clk 0:15:36]}  Nf6 {[%clk 0:15:29]} 4. d3 {[%clk 0:15:40]}  Bc5 {[%clk 0:15:36]} 5. c3 {[%clk 0:15:48]}  d5 {[%clk 0:15:36]} 6. exd5 {[%clk 0:15:53]}  Qxd5 {[%clk 0:15:44]} 7. Bc4 {[%clk 0:15:58]}  Qd6 {[%clk 0:15:49]} 8. Nbd2 {[%clk 0:15:56]}  Bf5 {[%clk 0:15:39]} 9. b4 {[%clk 0:15:56]}  Bb6 {[%clk 0:15:32]} 10. Ng5 {[%clk 0:16:02]}  Bg6 {[%clk 0:14:08]} 11. a4 {[%clk 0:13:34]}  e4 {[%clk 0:10:49]} 12. Ndxe4 {[%clk 0:08:31]}  Nxe4 {[%clk 0:10:57]} 13. Nxe4 {[%clk 0:08:32]}  Bxe4 {[%clk 0:11:00]} 14. dxe4 {[%clk 0:08:40]}  Qxd1+ {[%clk 0:06:26]} 15. Kxd1 {[%clk 0:08:49]}  Ne5 {[%clk 0:09:52]} 16. Bb3 {[%clk 0:08:30]}  Bxf2 {[%clk 0:09:21]} 17. Rf1 {[%clk 0:08:05]}  Bh4 {[%clk 0:09:24]} 18. Bf4 {[%clk 0:07:54]}  O-O-O {[%clk 0:09:03]} 19. Kc2 {[%clk 0:07:52]}  Rhe8 {[%clk 0:09:08]} 20. Rad1 {[%clk 0:06:50]}  Rxd1 {[%clk 0:08:19]} 21. Rxd1 {[%clk 0:06:42]}  f6 {[%clk 0:07:57]} 22. g3 {[%clk 0:05:04]}  Bg5 {[%clk 0:08:05]} 23. h4 {[%clk 0:04:09]}  Bxf4 {[%clk 0:06:26]} 24. gxf4 {[%clk 0:04:19]}  Ng6 {[%clk 0:07:24]} 25. f5 {[%clk 0:04:27]}  Ne5 {[%clk 0:06:50]} 26. Be6+ {[%clk 0:04:09]}  Kb8 {[%clk 0:06:59]} 27. h5 {[%clk 0:04:02]}  h6 {[%clk 0:06:57]} 28. Rg1 {[%clk 0:04:00]}  Re7 {[%clk 0:07:03]} 29. Rd1 {[%clk 0:04:08]}  Re8 {[%clk 0:06:58]} 30. Rg1 {[%clk 0:04:12]}  Re7 {[%clk 0:06:53]} 31. Rd1 {[%clk 0:04:20]}  Re8 {[%clk 0:06:26]} 1/2-1/2


[Site "http://www.Chess.com"]

[Event "FIDE World Rapid Chess Championship 2021"]
[White "Janik, Igor"]
[Black "Sarana, Alexey"]
[WhiteFideId "1159259"]
[BlackFideId "24133795"]
[WhiteElo "2462"]
[BlackElo "2680"]
[Result "1/2-1/2"]
[Round "01"]
[TimeControl "900+10"]
[Date "2021.12.26"]
[WhiteClock "0:00:33"]
[BlackClock "0:00:28"]

1. d4 {[%clk 0:15:19]}  Nf6 {[%clk 0:15:19]} 2. c4 {[%clk 0:15:28]}  e6 {[%clk 0:15:27]} 3. Nf3 {[%clk 0:15:36]}  d5 {[%clk 0:15:36]} 4. Nc3 {[%clk 0:15:45]}  Bb4 {[%clk 0:15:33]} 5. Qa4+ {[%clk 0:15:54]}  Nc6 {[%clk 0:15:42]} 6. e3 {[%clk 0:16:01]}  O-O {[%clk 0:15:49]} 7. Qc2 {[%clk 0:16:09]}  b6 {[%clk 0:15:52]} 8. Bd2 {[%clk 0:15:19]}  Bb7 {[%clk 0:15:39]} 9. cxd5 {[%clk 0:15:05]}  exd5 {[%clk 0:15:48]} 10. Bd3 {[%clk 0:14:57]}  Bd6 {[%clk 0:15:51]} 11. Nb5 {[%clk 0:14:08]}  Nb4 {[%clk 0:15:21]} 12. Bxb4 {[%clk 0:14:16]}  Bxb4+ {[%clk 0:15:29]} 13. Nc3 {[%clk 0:14:25]}  c5 {[%clk 0:13:54]} 14. a3 {[%clk 0:13:57]}  Ba5 {[%clk 0:13:57]} 15. O-O {[%clk 0:13:50]}  c4 {[%clk 0:14:04]} 16. Bf5 {[%clk 0:13:17]}  g6 {[%clk 0:13:38]} 17. Bh3 {[%clk 0:13:25]}  a6 {[%clk 0:13:24]} 18. Ne5 {[%clk 0:12:05]}  b5 {[%clk 0:13:30]} 19. f4 {[%clk 0:11:18]}  Qd6 {[%clk 0:13:20]} 20. f5 {[%clk 0:10:31]}  g5 {[%clk 0:11:53]} 21. g3 {[%clk 0:08:07]}  Rae8 {[%clk 0:11:36]} 22. Bg2 {[%clk 0:07:16]}  Bb6 {[%clk 0:11:16]} 23. Rae1 {[%clk 0:06:45]}  h6 {[%clk 0:10:18]} 24. Qd2 {[%clk 0:06:01]}  Re7 {[%clk 0:10:16]} 25. Bf3 {[%clk 0:05:25]}  Kh7 {[%clk 0:10:15]} 26. Ng4 {[%clk 0:05:30]}  Nxg4 {[%clk 0:09:31]} 27. Bxg4 {[%clk 0:05:38]}  f6 {[%clk 0:09:40]} 28. Bh5 {[%clk 0:05:28]}  Bc6 {[%clk 0:09:43]} 29. Bg6+ {[%clk 0:05:13]}  Kg7 {[%clk 0:09:51]} 30. Qd1 {[%clk 0:05:18]}  a5 {[%clk 0:09:46]} 31. Qg4 {[%clk 0:04:53]}  b4 {[%clk 0:09:50]} 32. axb4 {[%clk 0:05:02]}  axb4 {[%clk 0:09:59]} 33. Nd1 {[%clk 0:05:11]}  Rh8 {[%clk 0:07:36]} 34. h4 {[%clk 0:04:00]}  Re4 {[%clk 0:06:57]} 35. Qf3 {[%clk 0:04:09]}  Bc7 {[%clk 0:06:20]} 36. Nf2 {[%clk 0:03:33]}  Re7 {[%clk 0:06:13]} 37. hxg5 {[%clk 0:03:02]}  Qxg3+ {[%clk 0:04:47]} 38. Qxg3 {[%clk 0:03:11]}  Bxg3 {[%clk 0:04:56]} 39. gxf6+ {[%clk 0:02:50]}  Kxf6 {[%clk 0:05:05]} 40. Ra1 {[%clk 0:02:59]}  h5 {[%clk 0:03:37]} 41. Ra6 {[%clk 0:02:58]}  Rc7 {[%clk 0:03:46]} 42. e4 {[%clk 0:02:53]}  Kg7 {[%clk 0:03:32]} 43. e5 {[%clk 0:02:43]}  c3 {[%clk 0:03:41]} 44. Rb6 {[%clk 0:02:29]}  Bb7 {[%clk 0:02:46]} 45. Nd3 {[%clk 0:02:38]}  c2 {[%clk 0:02:47]} 46. Nc5 {[%clk 0:02:44]}  Bc8 {[%clk 0:02:50]} 47. Rc1 {[%clk 0:02:45]}  Bxe5 {[%clk 0:02:42]} 48. dxe5 {[%clk 0:02:33]}  Rxc5 {[%clk 0:02:51]} 49. Rxb4 {[%clk 0:02:42]}  Rf8 {[%clk 0:01:52]} 50. Rf4 {[%clk 0:02:25]}  Ba6 {[%clk 0:01:38]} 51. Bxh5 {[%clk 0:02:00]}  Kh6 {[%clk 0:01:48]} 52. Bg6 {[%clk 0:02:03]}  Kg5 {[%clk 0:01:22]} 53. Rf2 {[%clk 0:02:06]}  Bd3 {[%clk 0:01:30]} 54. e6 {[%clk 0:02:08]}  Rc7 {[%clk 0:01:35]} 55. e7 {[%clk 0:01:38]}  Rxe7 {[%clk 0:00:42]} 56. f6 {[%clk 0:01:47]}  Re1+ {[%clk 0:00:26]} 57. Rxe1 {[%clk 0:01:53]}  Kxg6 {[%clk 0:00:35]} 58. Rc1 {[%clk 0:01:21]}  d4 {[%clk 0:00:30]} 59. Rd2 {[%clk 0:01:14]}  Bf5 {[%clk 0:00:15]} 60. Rxd4 {[%clk 0:01:15]}  Kxf6 {[%clk 0:00:16]} 61. Rc4 {[%clk 0:00:20]}  Ke5 {[%clk 0:00:20]} 62. R4xc2 {[%clk 0:00:24]}  Bxc2 {[%clk 0:00:28]} 63. Rxc2 {[%clk 0:00:33]} 1/2-1/2


[Site "http://www.Chess.com"]

[Event "FIDE World Rapid Chess Championship 2021"]
[White "Samunenkov, Ihor"]
[Black "Shoker, Samy"]
[WhiteFideId "14187086"]
[BlackFideId "627143"]
[WhiteElo "2259"]
[BlackElo "2550"]
[Result "1-0"]
[Round "01"]
[TimeControl "900+10"]
[Date "2021.12.26"]
[WhiteClock "0:00:27"]
[BlackClock "0:01:46"]

1. c4 {[%clk 0:15:18]}  g6 {[%clk 0:15:18]} 2. d4 {[%clk 0:15:25]}  Bg7 {[%clk 0:15:23]} 3. Nc3 {[%clk 0:15:33]}  d6 {[%clk 0:15:29]} 4. e4 {[%clk 0:15:39]}  Nd7 {[%clk 0:15:14]} 5. Nf3 {[%clk 0:14:45]}  e5 {[%clk 0:15:19]} 6. Be2 {[%clk 0:14:35]}  Ngf6 {[%clk 0:14:48]} 7. O-O {[%clk 0:14:17]}  O-O {[%clk 0:14:54]} 8. d5 {[%clk 0:12:01]}  a5 {[%clk 0:14:45]} 9. Be3 {[%clk 0:09:45]}  Ng4 {[%clk 0:14:30]} 10. Bg5 {[%clk 0:09:52]}  f6 {[%clk 0:14:28]} 11. Bd2 {[%clk 0:09:06]}  Nh6 {[%clk 0:14:00]} 12. Qc1 {[%clk 0:07:12]}  Nf7 {[%clk 0:14:05]} 13. Ne1 {[%clk 0:07:18]}  f5 {[%clk 0:14:02]} 14. exf5 {[%clk 0:06:33]}  gxf5 {[%clk 0:14:10]} 15. f4 {[%clk 0:06:41]}  e4 {[%clk 0:12:57]} 16. Nc2 {[%clk 0:06:41]}  c6 {[%clk 0:12:59]} 17. Be3 {[%clk 0:06:05]}  c5 {[%clk 0:13:05]} 18. Qd2 {[%clk 0:05:34]}  Nh6 {[%clk 0:12:33]} 19. Bf2 {[%clk 0:05:16]}  a4 {[%clk 0:12:32]} 20. a3 {[%clk 0:05:19]}  Nf6 {[%clk 0:12:08]} 21. Ne3 {[%clk 0:05:25]}  Bd7 {[%clk 0:12:14]} 22. Kh1 {[%clk 0:05:25]}  Qe8 {[%clk 0:12:01]} 23. Bh4 {[%clk 0:04:58]}  Nfg4 {[%clk 0:11:02]} 24. Bxg4 {[%clk 0:04:29]}  fxg4 {[%clk 0:10:42]} 25. Rae1 {[%clk 0:04:29]}  Qh5 {[%clk 0:09:58]} 26. Be7 {[%clk 0:03:03]}  Rfe8 {[%clk 0:07:48]} 27. Bxd6 {[%clk 0:02:47]}  Bd4 {[%clk 0:07:10]} 28. g3 {[%clk 0:02:17]}  Bxe3 {[%clk 0:05:19]} 29. Rxe3 {[%clk 0:02:26]}  Nf5 {[%clk 0:05:27]} 30. Be5 {[%clk 0:01:58]}  Nxe3 {[%clk 0:04:28]} 31. Qxe3 {[%clk 0:02:03]}  Bf5 {[%clk 0:04:23]} 32. Nxe4 {[%clk 0:01:46]}  Qg6 {[%clk 0:04:01]} 33. Re1 {[%clk 0:01:02]}  Bxe4+ {[%clk 0:02:09]} 34. Qxe4 {[%clk 0:01:11]}  Qxe4+ {[%clk 0:02:17]} 35. Rxe4 {[%clk 0:01:19]}  Kf7 {[%clk 0:02:04]} 36. Kg2 {[%clk 0:01:24]}  Ra6 {[%clk 0:02:11]} 37. Re2 {[%clk 0:00:50]}  Rb6 {[%clk 0:01:35]} 38. Rd2 {[%clk 0:00:58]}  Ke7 {[%clk 0:01:34]} 39. h4 {[%clk 0:00:20]}  gxh3+ {[%clk 0:01:05]} 40. Kxh3 {[%clk 0:00:29]}  Kd7 {[%clk 0:01:13]} 41. g4 {[%clk 0:00:13]}  Rh6+ {[%clk 0:01:14]} 42. Kg3 {[%clk 0:00:21]}  Rh1 {[%clk 0:01:21]} 43. Kf3 {[%clk 0:00:19]}  Rh3+ {[%clk 0:01:09]} 44. Ke4 {[%clk 0:00:22]}  Rh1 {[%clk 0:01:10]} 45. g5 {[%clk 0:00:24]}  Rc1 {[%clk 0:01:04]} 46. Kd3 {[%clk 0:00:25]}  Rf8 {[%clk 0:01:03]} 47. Rh2 {[%clk 0:00:28]}  Rf7 {[%clk 0:01:03]} 48. Rh6 {[%clk 0:00:32]}  Rd1+ {[%clk 0:00:54]} 49. Kc2 {[%clk 0:00:23]}  Rf1 {[%clk 0:01:03]} 50. Rb6 {[%clk 0:00:28]}  Rf2+ {[%clk 0:00:49]} 51. Kd3 {[%clk 0:00:18]}  Rf3+ {[%clk 0:00:47]} 52. Ke4 {[%clk 0:00:27]}  Rb3 {[%clk 0:00:49]} 53. Rxb3 {[%clk 0:00:17]}  axb3 {[%clk 0:00:58]} 54. f5 {[%clk 0:00:26]}  Rf8 {[%clk 0:00:55]} 55. f6 {[%clk 0:00:14]}  Ke8 {[%clk 0:00:57]} 56. d6 {[%clk 0:00:15]}  Rg8 {[%clk 0:00:50]} 57. Bf4 {[%clk 0:00:13]}  Kd7 {[%clk 0:00:51]} 58. Kf5 {[%clk 0:00:18]}  Rf8 {[%clk 0:00:51]} 59. Be5 {[%clk 0:00:18]}  b6 {[%clk 0:00:57]} 60. Bg3 {[%clk 0:00:16]}  Rf7 {[%clk 0:00:45]} 61. Bf4 {[%clk 0:00:18]}  Rf8 {[%clk 0:00:53]} 62. Bh2 {[%clk 0:00:13]}  Rf7 {[%clk 0:01:00]} 63. Bg3 {[%clk 0:00:14]}  Rf8 {[%clk 0:01:10]} 64. a4 {[%clk 0:00:21]}  Rf7 {[%clk 0:01:13]} 65. Be5 {[%clk 0:00:25]}  Rf8 {[%clk 0:01:22]} 66. Bf4 {[%clk 0:00:19]}  Rf7 {[%clk 0:01:30]} 67. Bh2 {[%clk 0:00:27]}  Rf8 {[%clk 0:01:40]} 68. Bg3 {[%clk 0:00:17]}  Rf7 {[%clk 0:01:49]} 69. Ke5 {[%clk 0:00:24]}  Rf8 {[%clk 0:01:58]} 70. Bf4 {[%clk 0:00:21]}  Re8+ {[%clk 0:01:39]} 71. Kd5 {[%clk 0:00:17]}  Ra8 {[%clk 0:01:47]} 72. Be5 {[%clk 0:00:13]}  Rg8 {[%clk 0:01:49]} 73. Bf4 {[%clk 0:00:14]}  Ra8 {[%clk 0:01:59]} 74. g6 {[%clk 0:00:12]}  hxg6 {[%clk 0:01:51]} 75. Bh6 {[%clk 0:00:21]}  Ke8 {[%clk 0:02:00]} 76. d7+ {[%clk 0:00:12]}  Kxd7 {[%clk 0:01:59]} 77. f7 {[%clk 0:00:18]}  Ke7 {[%clk 0:02:09]} 78. f8=Q+ {[%clk 0:00:26]}  Rxf8 {[%clk 0:02:18]} 79. Bxf8+ {[%clk 0:00:35]}  Kxf8 {[%clk 0:02:27]} 80. Kc6 {[%clk 0:00:38]}  g5 {[%clk 0:02:31]} 81. Kxb6 {[%clk 0:00:47]}  g4 {[%clk 0:02:39]} 82. a5 {[%clk 0:00:56]}  g3 {[%clk 0:02:48]} 83. a6 {[%clk 0:01:05]}  g2 {[%clk 0:02:57]} 84. a7 {[%clk 0:01:14]}  g1=Q {[%clk 0:03:05]} 85. a8=Q+ {[%clk 0:01:22]}  Ke7 {[%clk 0:03:13]} 86. Qe4+ {[%clk 0:01:05]}  Kf8 {[%clk 0:03:15]} 87. Qf5+ {[%clk 0:01:03]}  Ke8 {[%clk 0:03:20]} 88. Qxc5 {[%clk 0:00:40]}  Qd1 {[%clk 0:02:07]} 89. Qe5+ {[%clk 0:00:34]}  Kf8 {[%clk 0:02:15]} 90. c5 {[%clk 0:00:33]}  Qd8+ {[%clk 0:02:20]} 91. Qc7 {[%clk 0:00:30]}  Qh4 {[%clk 0:02:17]} 92. Qd6+ {[%clk 0:00:28]}  Ke8 {[%clk 0:02:25]} 93. c6 {[%clk 0:00:13]}  Qf2+ {[%clk 0:02:29]} 94. Qc5 {[%clk 0:00:12]}  Qf6 {[%clk 0:01:42]} 95. Qe3+ {[%clk 0:00:21]}  Kd8 {[%clk 0:01:44]} 96. Qd3+ {[%clk 0:00:26]}  Ke8 {[%clk 0:01:50]} 97. Qxb3 {[%clk 0:00:12]}  Qg6 {[%clk 0:01:22]} 98. Qe3+ {[%clk 0:00:16]}  Kd8 {[%clk 0:01:30]} 99. Qd4+ {[%clk 0:00:24]}  Ke7 {[%clk 0:01:35]} 100. b4 {[%clk 0:00:22]}  Qg3 {[%clk 0:01:36]} 101. Qd7+ {[%clk 0:00:25]}  Kf6 {[%clk 0:01:44]} 102. Qd4+ {[%clk 0:00:25]}  Ke7 {[%clk 0:01:52]} 103. c7 {[%clk 0:00:22]}  Qc3 {[%clk 0:01:46]} 104. Qxc3 {[%clk 0:00:27]} 1-0


[Site "http://www.Chess.com"]

[Event "FIDE World Rapid Chess Championship 2021"]
[White "Jobava, Baadur"]
[Black "Sychev, Klementy"]
[WhiteFideId "13601520"]
[BlackFideId "4114060"]
[WhiteElo "2679"]
[BlackElo "2461"]
[Result "1-0"]
[Round "01"]
[TimeControl "900+10"]
[Date "2021.12.26"]
[WhiteClock "0:00:32"]
[BlackClock "0:00:15"]

1. e4 {[%clk 0:15:13]}  c5 {[%clk 0:15:11]} 2. Nf3 {[%clk 0:15:16]}  e6 {[%clk 0:15:18]} 3. d4 {[%clk 0:12:40]}  cxd4 {[%clk 0:15:25]} 4. Nxd4 {[%clk 0:12:48]}  Nf6 {[%clk 0:15:30]} 5. Nc3 {[%clk 0:12:38]}  Nc6 {[%clk 0:15:37]} 6. Nxc6 {[%clk 0:11:17]}  bxc6 {[%clk 0:15:45]} 7. e5 {[%clk 0:11:26]}  Nd5 {[%clk 0:15:51]} 8. Ne4 {[%clk 0:11:35]}  Qc7 {[%clk 0:15:58]} 9. f4 {[%clk 0:11:41]}  Qb6 {[%clk 0:16:06]} 10. Bd3 {[%clk 0:11:04]}  Be7 {[%clk 0:12:32]} 11. Qe2 {[%clk 0:04:49]}  Rb8 {[%clk 0:05:17]} 12. a3 {[%clk 0:04:27]}  f5 {[%clk 0:04:38]} 13. Nf2 {[%clk 0:04:03]}  Qd4 {[%clk 0:03:27]} 14. g3 {[%clk 0:01:50]}  Qa4 {[%clk 0:02:00]} 15. O-O {[%clk 0:01:39]}  O-O {[%clk 0:02:01]} 16. c4 {[%clk 0:01:26]}  Nb4 {[%clk 0:01:42]} 17. b3 {[%clk 0:01:17]}  Qa6 {[%clk 0:01:48]} 18. Bb1 {[%clk 0:01:00]}  c5 {[%clk 0:01:57]} 19. axb4 {[%clk 0:00:37]}  Qxa1 {[%clk 0:02:02]} 20. Ba2 {[%clk 0:00:46]}  Bb7 {[%clk 0:01:20]} 21. Ba3 {[%clk 0:00:36]}  Qc3 {[%clk 0:01:12]} 22. Rc1 {[%clk 0:00:22]}  Qf3 {[%clk 0:00:59]} 23. Qxf3 {[%clk 0:00:31]}  Bxf3 {[%clk 0:01:07]} 24. bxc5 {[%clk 0:00:18]}  Rfc8 {[%clk 0:01:14]} 25. b4 {[%clk 0:00:15]}  a5 {[%clk 0:01:22]} 26. b5 {[%clk 0:00:18]}  Bxc5 {[%clk 0:01:29]} 27. Bxc5 {[%clk 0:00:26]}  Rxc5 {[%clk 0:01:38]} 28. Nd3 {[%clk 0:00:34]}  Rc7 {[%clk 0:01:43]} 29. Re1 {[%clk 0:00:18]}  Kf8 {[%clk 0:00:44]} 30. Kf2 {[%clk 0:00:27]}  Be4 {[%clk 0:00:54]} 31. Nb2 {[%clk 0:00:36]}  Ke7 {[%clk 0:01:00]} 32. Ke3 {[%clk 0:00:37]}  d6 {[%clk 0:01:03]} 33. exd6+ {[%clk 0:00:40]}  Kxd6 {[%clk 0:01:12]} 34. Na4 {[%clk 0:00:39]}  Bc2 {[%clk 0:01:13]} 35. Nc3 {[%clk 0:00:41]}  a4 {[%clk 0:01:07]} 36. Kd4 {[%clk 0:00:50]}  Bb3 {[%clk 0:01:08]} 37. Bxb3 {[%clk 0:00:21]}  axb3 {[%clk 0:01:17]} 38. Na4 {[%clk 0:00:29]}  Ra8 {[%clk 0:01:07]} 39. c5+ {[%clk 0:00:35]}  Ke7 {[%clk 0:01:07]} 40. Nc3 {[%clk 0:00:29]}  b2 {[%clk 0:00:29]} 41. Rb1 {[%clk 0:00:38]}  Rd8+ {[%clk 0:00:23]} 42. Kc4 {[%clk 0:00:47]}  Rd2 {[%clk 0:00:21]} 43. b6 {[%clk 0:00:56]}  Rc8 {[%clk 0:00:24]} 44. Kb5 {[%clk 0:00:41]}  Rc2 {[%clk 0:00:21]} 45. Na4 {[%clk 0:00:50]}  Kd8 {[%clk 0:00:23]} 46. Rd1+ {[%clk 0:00:52]}  Ke7 {[%clk 0:00:30]} 47. b7 {[%clk 0:00:51]}  R8xc5+ {[%clk 0:00:26]} 48. Kb6 {[%clk 0:00:13]}  Rc1 {[%clk 0:00:29]} 49. Nxb2 {[%clk 0:00:19]}  R1c2 {[%clk 0:00:12]} 50. Na4 {[%clk 0:00:16]}  R5c4 {[%clk 0:00:02]} 51. Rb1 {[%clk 0:00:23]}  Rc8 {[%clk 0:00:14]} 52. bxc8=Q {[%clk 0:00:27]}  Rxc8 {[%clk 0:00:23]} 53. Re1 {[%clk 0:00:16]}  Rb8+ {[%clk 0:00:18]} 54. Kc7 {[%clk 0:00:19]}  Rb5 {[%clk 0:00:15]} 55. Kc6 {[%clk 0:00:27]}  Ra5 {[%clk 0:00:21]} 56. Nc5 {[%clk 0:00:35]}  Ra2 {[%clk 0:00:30]} 57. h4 {[%clk 0:00:13]}  Ra3 {[%clk 0:00:34]} 58. h5 {[%clk 0:00:15]}  Rxg3 {[%clk 0:00:39]} 59. Nxe6 {[%clk 0:00:23]}  g6 {[%clk 0:00:14]} 60. Ng5+ {[%clk 0:00:30]}  Kf6 {[%clk 0:00:15]} 61. Re6+ {[%clk 0:00:28]}  Kg7 {[%clk 0:00:15]} 62. Re7+ {[%clk 0:00:32]} 1-0


[Site "http://www.Chess.com"]

[Event "FIDE World Rapid Chess Championship 2021"]
[White "Piorun, Kacper"]
[Black "Dudin, Gleb"]
[WhiteFideId "1130420"]
[BlackFideId "34184934"]
[WhiteElo "2547"]
[BlackElo "2247"]
[Result "0-1"]
[Round "01"]
[TimeControl "900+10"]
[Date "2021.12.26"]
[WhiteClock "0:00:25"]
[BlackClock "23:59:53"]

1. Nf3 {[%clk 0:15:18]}  Nf6 {[%clk 0:15:12]} 2. g3 {[%clk 0:15:24]}  d5 {[%clk 0:15:16]} 3. Bg2 {[%clk 0:15:32]}  c6 {[%clk 0:15:21]} 4. O-O {[%clk 0:15:31]}  Bg4 {[%clk 0:15:25]} 5. c4 {[%clk 0:15:28]}  e6 {[%clk 0:15:11]} 6. cxd5 {[%clk 0:15:19]}  Bxf3 {[%clk 0:15:07]} 7. Bxf3 {[%clk 0:15:28]}  cxd5 {[%clk 0:15:15]} 8. Nc3 {[%clk 0:15:33]}  Nc6 {[%clk 0:15:13]} 9. d3 {[%clk 0:15:37]}  Be7 {[%clk 0:15:11]} 10. Bg2 {[%clk 0:15:40]}  O-O {[%clk 0:14:51]} 11. Bd2 {[%clk 0:15:45]}  Rc8 {[%clk 0:14:48]} 12. Qa4 {[%clk 0:15:47]}  Qd7 {[%clk 0:13:38]} 13. Rfc1 {[%clk 0:15:47]}  Rfd8 {[%clk 0:13:33]} 14. a3 {[%clk 0:15:13]}  Ne8 {[%clk 0:08:24]} 15. Qd1 {[%clk 0:13:59]}  Nd6 {[%clk 0:08:11]} 16. Rab1 {[%clk 0:11:31]}  Bf6 {[%clk 0:07:56]} 17. Bf4 {[%clk 0:09:38]}  Nf5 {[%clk 0:07:04]} 18. Na4 {[%clk 0:08:37]}  b6 {[%clk 0:06:54]} 19. Nc3 {[%clk 0:08:39]}  Na5 {[%clk 0:04:37]} 20. Bd2 {[%clk 0:07:40]}  Nd4 {[%clk 0:03:46]} 21. b4 {[%clk 0:07:45]}  Nac6 {[%clk 0:03:41]} 22. e3 {[%clk 0:07:35]}  Nf5 {[%clk 0:03:42]} 23. d4 {[%clk 0:07:43]}  Nd6 {[%clk 0:02:35]} 24. Be1 {[%clk 0:07:18]}  Ne7 {[%clk 0:01:08]} 25. Bf1 {[%clk 0:07:05]}  Nc4 {[%clk 0:00:58]} 26. a4 {[%clk 0:07:10]}  Nf5 {[%clk 0:00:58]} 27. Bd3 {[%clk 0:05:51]}  Nfd6 {[%clk 0:00:59]} 28. b5 {[%clk 0:05:28]}  g6 {[%clk 0:00:42]} 29. Na2 {[%clk 0:05:37]}  Be7 {[%clk 0:00:22]} 30. Nb4 {[%clk 0:05:45]}  Na5 {[%clk 0:00:30]} 31. Na2 {[%clk 0:05:27]}  Nac4 {[%clk 0:00:30]} 32. Qb3 {[%clk 0:04:35]}  Qb7 {[%clk 0:00:26]} 33. Rc2 {[%clk 0:04:17]}  a5 {[%clk 0:00:14]} 34. Rbc1 {[%clk 0:03:58]}  Rc7 {[%clk 0:00:15]} 35. Nc3 {[%clk 0:03:44]}  Rdc8 {[%clk 0:00:19]} 36. Ne2 {[%clk 0:03:50]}  f5 {[%clk 0:00:14]} 37. Nf4 {[%clk 0:03:50]}  Kf7 {[%clk 0:00:23]} 38. Bf1 {[%clk 0:03:48]}  Bf6 {[%clk 0:00:13]} 39. Bg2 {[%clk 0:03:32]}  Ne4 {[%clk 0:00:16]} 40. Nd3 {[%clk 0:03:11]}  g5 {[%clk 0:00:12]} 41. g4 {[%clk 0:02:22]}  fxg4 {[%clk 0:00:15]} 42. Bxe4 {[%clk 0:02:20]}  dxe4 {[%clk 0:00:21]} 43. Rxc4 {[%clk 0:02:28]}  Rxc4 {[%clk 0:00:13]} 44. Rxc4 {[%clk 0:02:24]}  Rxc4 {[%clk 0:00:14]} 45. Qxc4 {[%clk 0:02:21]}  exd3 {[%clk 0:00:22]} 46. Qxd3 {[%clk 0:02:30]}  Kg7 {[%clk 0:00:18]} 47. e4 {[%clk 0:02:26]}  h5 {[%clk 0:00:14]} 48. Bc3 {[%clk 0:02:15]}  Qc7 {[%clk 0:00:13]} 49. Kg2 {[%clk 0:01:16]}  h4 {[%clk 0:00:13]} 50. Bd2 {[%clk 0:00:40]}  Qd6 {[%clk 0:00:13]} 51. d5 {[%clk 0:00:33]}  exd5 {[%clk 0:00:12]} 52. Qxd5 {[%clk 0:00:17]}  Qxd5 {[%clk 0:00:17]} 53. exd5 {[%clk 0:00:26]}  Kg6 {[%clk 0:00:13]} 54. f3 {[%clk 0:00:24]}  h3+ {[%clk 0:00:14]} 55. Kg3 {[%clk 0:00:34]}  gxf3 {[%clk 0:00:22]} 56. Kxf3 {[%clk 0:00:40]}  Kf5 {[%clk 0:00:25]} 57. Kg3 {[%clk 0:00:32]}  g4 {[%clk 0:00:28]} 58. Bf4 {[%clk 0:00:16]}  Bc3 {[%clk 0:00:36]} 59. Be3 {[%clk 0:00:25]}  Be5+ {[%clk 0:00:45]} 60. Kf2 {[%clk 0:00:15]}  Bxh2 {[%clk 0:00:51]} 61. Bxb6 {[%clk 0:00:24]}  Ke4 {[%clk 0:00:36]} 62. Ke2 {[%clk 0:00:26]}  Bd6 {[%clk 0:00:29]} 63. Kf1 {[%clk 0:00:25]}  Ke5 {[%clk 23:59:53]} 0-1


[Site "http://www.Chess.com"]